fUST/lending_fUST_20250724
["ID","MTS","AMOUNT","RATE_DAILY","PERIOD"]
[374573382,1753360256289,-460.0,0.0002,2]
[374573383,1753360256299,-460.0,0.0002,2]
[374573384,1753360256311,-460.0,0.0002,2]
[374573385,1753360256321,-460.0,0.0002,2]
[374573386,1753360256339,-460.0,0.0002,2]
[374573387,1753360256355,-460.0,0.0002,2]
[374573388,1753360256365,-460.0,0.0002,2]
[374573389,1753360256374,-617.93,0.0002,2]
[374573390,1753360256384,-460.0,0.0002,2]
[374573391,1753360256396,-460.0,0.0002,2]
[374573392,1753360256405,-460.0,0.0002,2]
[374573393,1753360256415,-497.53,0.0002,2]
[374573394,1753360256424,-460.0,0.0002,2]
[374573395,1753360256435,-460.0,0.0002,2]
[374573396,1753360256444,-460.0,0.0002,2]
[374573397,1753360256454,-498.33,0.0002,2]
[374573398,1753360256463,-460.0,0.0002,2]
[374573399,1753360256473,-460.0,0.0002,2]
[374573400,1753360256482,-460.0,0.0002,2]
[374573401,1753360256492,-460.0,0.0002,2]
[374573402,1753360256501,-460.0,0.0002,2]
[374573403,1753360256511,-1176.12,0.0002,2]
[374573404,1753360256520,-460.0,0.0002,2]
[374573405,1753360256529,-468.66,0.0002,2]
[374573406,1753360256539,-460.0,0.0002,2]
[374573407,1753360256548,-460.0,0.0002,2]
[374573408,1753360256557,-460.0,0.0002,2]
[374573409,1753360256568,-460.0,0.0002,2]
[374573410,1753360256577,-460.0,0.0002,2]
[374573411,1753360256587,-460.0,0.0002,2]
[374573412,1753360256597,-549.87824903,0.0002,2]
[374573413,1753360256608,-461.8206878,0.0002,2]
[374573414,1753360256618,-460.0,0.0002,2]
[374573415,1753360256629,-460.0,0.0002,2]
[374573416,1753360256639,-460.0,0.0002,2]
[374573417,1753360256652,-460.0,0.0002,2]
[374573418,1753360256661,-456.79650098,0.0002,2]
[374573419,1753360256671,-460.0,0.0002,2]
[374573420,1753360256681,-460.0,0.0002,2]
[374573421,1753360256690,-460.0,0.0002,2]
[374573422,1753360256700,-485.69,0.0002,2]
[374573423,1753360256709,-460.0,0.0002,2]
[374573424,1753360256720,-460.0,0.0002,2]
[374573425,1753360256729,-400.0,0.0002,2]
[374573426,1753360256739,-460.0,0.0002,2]
[374573427,1753360256748,-500.0,0.0002,2]
[374573428,1753360256758,-460.0,0.0002,2]
[374573429,1753360256767,-460.0,0.0002,2]
[374573430,1753360256777,-460.0,0.0002,2]
[374573431,1753360256787,-460.0,0.0002,2]
[374573432,1753360256796,-460.0,0.0002,2]
[374573433,1753360256806,-460.0,0.0002,2]
[374573434,1753360256815,-269.4972036,0.0002,2]
[374573435,1753360256825,-460.0,0.0002,2]
[374573436,1753360256835,-307.39370806,0.0002,2]
[374573437,1753360256844,-460.0,0.0002,2]
[374573438,1753360256854,-468.87214064,0.0002,2]
[374573439,1753360256864,-460.0,0.0002,2]
[374573440,1753360256873,-460.0,0.0002,2]
[374573441,1753360256883,-460.0,0.0002,2]
[374573442,1753360256893,-460.0,0.0002,2]
[374573443,1753360256909,-460.0,0.0002,2]
[374573444,1753360256919,-462.25910531,0.0002,2]
[374573445,1753360256928,-215.95119484,0.0002,2]
[374573446,1753360256938,-460.0,0.0002,2]
[374573447,1753360256947,-460.0,0.0002,2]
[374573448,1753360256957,-460.0,0.0002,2]
[374573449,1753360256967,-460.0,0.0002,2]
[374573450,1753360256977,-460.0,0.0002,2]
[374573451,1753360256987,-460.0,0.0002,2]
[374573452,1753360256997,-656.04,0.0002,2]
[374573453,1753360257007,-787.46,0.0002,2]
[374573454,1753360257016,-460.0,0.0002,2]
[374573455,1753360257026,-460.0,0.0002,2]
[374573456,1753360257036,-460.0,0.0002,2]
[374573457,1753360257045,-460.0,0.0002,2]
[374573458,1753360257055,-460.0,0.0002,2]
[374573459,1753360257065,-4145.47,0.0002,2]
[374573460,1753360257075,-460.0,0.0002,2]
[374573461,1753360257084,-460.0,0.0002,2]
[374573462,1753360257094,-460.0,0.0002,2]
[374573463,1753360257103,-460.0,0.0002,2]
[374573464,1753360257113,-460.0,0.0002,2]
[374573465,1753360257123,-3246.15,0.0002,2]
[374573466,1753360257137,-460.0,0.0002,2]
[374573467,1753360257150,-460.0,0.0002,2]
[374573468,1753360257160,-460.0,0.0002,2]
[374573469,1753360257169,-1199.81,0.0002,2]
[374573470,1753360257180,-983.86,0.0002,2]
[374573471,1753360257190,-460.0,0.0002,2]
[374573472,1753360257200,-460.0,0.0002,2]
[374573473,1753360257212,-460.0,0.0002,2]
[374573474,1753360257222,-1418.88,0.0002,2]
[374573475,1753360257232,-460.0,0.0002,2]
[374573476,1753360257242,-460.0,0.0002,2]
[374573477,1753360257252,-460.0,0.0002,2]
[374573478,1753360257263,-460.0,0.0002,2]
[374573479,1753360257272,-151.982058,0.0002,2]
[374573480,1753360257282,-460.0,0.0002,2]
[374573481,1753360257292,-460.0,0.0002,2]
[374573482,1753360257302,-464.01772172,0.0002,2]
[374573483,1753360257312,-460.0,0.0002,2]
[374573484,1753360257322,-460.0,0.0002,2]
[374573485,1753360257331,-460.0,0.0002,2]
[374573486,1753360257341,-849.03,0.0002,2]
[374573487,1753360257351,-460.0,0.0002,2]
[374573488,1753360257360,-460.0,0.0002,2]
[374573489,1753360257370,-569.28,0.0002,2]
[374573490,1753360257379,-460.0,0.0002,2]
[374573491,1753360257389,-151.604884,0.0002,2]
[374573492,1753360257402,-613.55,0.0002,2]
[374573493,1753360257412,-317.21275826,0.0002,2]
[374573494,1753360257422,-1824.94,0.0002,2]
[374573495,1753360257432,-460.0,0.0002,2]
[374573496,1753360257442,-460.0,0.0002,2]
[374573497,1753360257451,-627.83,0.0002,2]
[374573498,1753360257461,-460.0,0.0002,2]
[374573499,1753360257470,-460.0,0.0002,2]
[374573500,1753360257480,-460.0,0.0002,2]
[374573501,1753360257603,-460.0,0.0002,2]
[374573502,1753360257615,-460.0,0.0002,2]
[374573503,1753360257625,-460.0,0.0002,2]
[374573504,1753360257635,-460.0,0.0002,2]
[374573505,1753360257646,-460.0,0.0002,2]
[374573506,1753360257656,-2461.45,0.0002,2]
[374573507,1753360257666,-522.89380388,0.0002,2]
[374573508,1753360257675,-460.0,0.0002,2]
[374573509,1753360257684,-460.0,0.0002,2]
[374573510,1753360257694,-460.0,0.0002,2]
[374573511,1753360257703,-460.0,0.0002,2]
[374573512,1753360257714,-460.0,0.0002,2]
[374573513,1753360257723,-460.0,0.0002,2]
[374573514,1753360257732,-460.0,0.0002,2]
[374573515,1753360257742,-460.0,0.0002,2]
[374573516,1753360257751,-460.0,0.0002,2]
[374573517,1753360257761,-597.66,0.0002,2]
[374573518,1753360257770,-466.5847927,0.0002,2]
[374573519,1753360257780,-460.0,0.0002,2]
[374573520,1753360257790,-479.16,0.0002,2]
[374573521,1753360257800,-460.0,0.0002,2]
[374573522,1753360257810,-460.0,0.0002,2]
[374573523,1753360257820,-462.09326379,0.0002,2]
[374573524,1753360257829,-2629.06,0.0002,2]
[374573525,1753360257839,-314.23521858,0.0002,2]
[374573526,1753360257848,-602.97,0.0002,2]
[374573527,1753360257858,-172.36816867,0.0002,2]
[374573528,1753360257867,-465.02367524,0.0002,2]
[374573529,1753360257878,-460.0,0.0002,2]
[374573530,1753360257888,-460.0,0.0002,2]
[374573531,1753360257902,-1353.06,0.0002,2]
[374573532,1753360257912,-604.51,0.0002,2]
[374573533,1753360257923,-460.0,0.0002,2]
[374573534,1753360257933,-460.0,0.0002,2]
[374573535,1753360257944,-460.0,0.0002,2]
[374573536,1753360257954,-460.0,0.0002,2]
[374573537,1753360257964,-460.0,0.0002,2]
[374573538,1753360257975,-460.0,0.0002,2]
[374573539,1753360257985,-460.0,0.0002,2]
[374573540,1753360257994,-395.94874233,0.0002,7]
[374573541,1753360258004,-555.83,0.0002,2]
[374573542,1753360258014,-460.0,0.0002,2]
[374573543,1753360258024,-460.0,0.0002,2]
[374573544,1753360258034,-30676.34952064,0.0002,2]
[374573545,1753360258044,-460.0,0.0002,2]
[374573546,1753360258053,-2933.32,0.0002,2]
[374573547,1753360258063,-460.0,0.0002,2]
[374573548,1753360258072,-616.01,0.0002,2]
[374573549,1753360258082,-460.0,0.0002,2]
[374573550,1753360258092,-460.0,0.0002,2]
[374573551,1753360258102,-609.01,0.0002,2]
[374573552,1753360258111,-460.0,0.0002,2]
[374573553,1753360258121,-579.29204909,0.0002,2]
[374573554,1753360258133,-460.21,0.0002,2]
[374573555,1753360258143,-460.0,0.0002,2]
[374573556,1753360258154,-460.0,0.0002,2]
[374573557,1753360258164,-460.0,0.0002,2]
[374573558,1753360258174,-151.0,0.0002,2]
[374573559,1753360258184,-1496.43,0.0002,2]
[374573560,1753360258194,-1261.1,0.0002,2]
[374573561,1753360258205,-596.9,0.0002,2]
[374573562,1753360258216,-455.84557841,0.0002,2]
[374573563,1753360258225,-460.0,0.0002,2]
[374573564,1753360258235,-461.70183694,0.0002,2]
[374573565,1753360258244,-670.55,0.0002,2]
[374573566,1753360258255,-155.0,0.0002,2]
[374573567,1753360258265,-653.26,0.0002,2]
[374573568,1753360258275,-460.0,0.0002,2]
[374573569,1753360258285,-5786.17,0.0002,2]
[374573570,1753360258295,-460.0,0.0002,2]
[374573571,1753360258304,-151.0,0.0002,2]
[374573572,1753360258314,-604.88,0.0002,2]
[374573573,1753360258324,-485.63493266,0.0002,2]
[374573574,1753360258334,-460.0,0.0002,2]
[374573575,1753360258355,-1911.8,0.0002,2]
[374573576,1753360258366,-460.0,0.0002,2]
[374573577,1753360258376,-460.0,0.0002,2]
[374573578,1753360258386,-460.0,0.0002,2]
[374573579,1753360258397,-744.46,0.0002,2]
[374573580,1753360258407,-502.96576435,0.0002,2]
[374573581,1753360258418,-460.0,0.0002,2]
[374573582,1753360258428,-460.0,0.0002,2]
[374573583,1753360258439,-475.48809473,0.0002,2]
[374573584,1753360258449,-460.0,0.0002,2]
[374573585,1753360258459,-670.07,0.0002,2]
[374573586,1753360258470,-460.0,0.0002,2]
[374573587,1753360258480,-460.0,0.0002,2]
[374573588,1753360258490,-460.0,0.0002,2]
[374573589,1753360258500,-460.0,0.0002,2]
[374573590,1753360258509,-460.0,0.0002,2]
[374573591,1753360258519,-1002.82,0.0002,2]
[374573592,1753360258530,-531.78,0.0002,2]
[374573593,1753360258540,-498.33,0.0002,2]
[374573594,1753360258550,-460.0,0.0002,2]
[374573595,1753360258559,-460.0,0.0002,2]
[374573596,1753360258569,-460.0,0.0002,2]
[374573597,1753360258579,-460.0,0.0002,2]
[374573598,1753360258589,-460.0,0.0002,2]
[374573599,1753360258599,-4000.0,0.0002,4]
[374573600,1753360258610,-1757.41,0.0002,2]
[374573601,1753360258620,-460.0,0.0002,2]
[374573602,1753360258630,-754.62,0.0002,2]
[374573603,1753360258640,-529.83,0.0002,2]
[374573604,1753360258652,-460.0,0.0002,2]
[374573605,1753360258662,-460.0,0.0002,2]
[374573606,1753360258672,-168.40109635,0.0002,2]
[374573607,1753360258682,-3594.1,0.0002,2]
[374573608,1753360258692,-460.0,0.0002,2]
[374573609,1753360258702,-460.0,0.0002,2]
[374573610,1753360258712,-460.0,0.0002,2]
[374573611,1753360258722,-460.0,0.0002,2]
[374573612,1753360258732,-460.0,0.0002,2]
[374573613,1753360258743,-460.0,0.0002,2]
[374573614,1753360258753,-675.78,0.0002,2]
[374573615,1753360258763,-471.07513265,0.0002,2]
[374573616,1753360258773,-460.0,0.0002,2]
[374573617,1753360258783,-460.0,0.0002,2]
[374573618,1753360258793,-160.0,0.00020002,2]
[374573619,1753360258802,-1000.0,0.00020021,2]
[374573620,1753360258812,-500.0,0.00020021,2]
[374573621,1753360258823,-500.0,0.00020021,2]
[374573622,1753360258833,-1000.0,0.00020021,2]
[374573623,1753360258844,-576.27187642,0.00020021,2]
[374573624,1753360258854,-2212.1093408,0.00020072,2]
[374573625,1753360258864,-2212.1093408,0.00020245,2]
[374573626,1753360258874,-888.99451029,0.00020264,2]
[374573627,1753360258885,-460.0,0.00020273,2]
[374573628,1753360258897,-462.93405833,0.00020273,2]
[374573629,1753360258907,-151.0,0.00020273,2]
[374573630,1753360258918,-460.0,0.00020273,2]
[374573631,1753360258928,-151.0,0.00020273,2]
[374573632,1753360258939,-562.86636854,0.00020273,2]
[374573633,1753360258949,-460.0,0.00020273,2]
[374573634,1753360258959,-460.0,0.00020273,2]
[374573635,1753360258969,-460.0,0.00020273,2]
[374573636,1753360258983,-220.67052801,0.00020273,2]
[374573637,1753360258994,-460.0,0.00020273,2]
[374573638,1753360259013,-460.0,0.00020273,2]
[374573639,1753360259023,-151.0,0.00020273,2]
[374573640,1753360259032,-460.0,0.00020273,2]
[374573641,1753360259042,-470.62363547,0.00020273,2]
[374573642,1753360259064,-460.0,0.00020273,2]
[374573643,1753360259075,-151.0,0.00020273,2]
[374573644,1753360259085,-151.0,0.00020273,2]
[374573645,1753360259094,-460.0,0.00020273,2]
[374573646,1753360259104,-460.0,0.00020273,2]
[374573647,1753360259114,-151.0,0.00020273,2]
[374573648,1753360259124,-460.0,0.00020273,2]
[374573649,1753360259139,-460.0,0.00020273,2]
[374573650,1753360259151,-460.0,0.00020273,2]
[374573651,1753360259161,-460.0,0.00020273,2]
[374573652,1753360259171,-460.0,0.00020273,2]
[374573653,1753360259180,-460.0,0.00020273,2]
[374573654,1753360259190,-460.0,0.00020273,2]
[374573655,1753360259200,-460.0,0.00020273,2]
[374573656,1753360259211,-460.0,0.00020273,2]
[374573657,1753360259222,-460.0,0.00020273,2]
[374573658,1753360259231,-460.0,0.00020273,2]
[374573659,1753360259241,-464.96305068,0.00020273,2]
[374573660,1753360259251,-460.0,0.00020273,2]
[374573661,1753360259261,-460.0,0.00020273,2]
[374573662,1753360259271,-462.4665641,0.00020273,2]
[374573663,1753360259281,-460.0,0.00020273,2]
[374573664,1753360259291,-460.0,0.00020273,2]
[374573665,1753360259300,-460.0,0.00020273,2]
[374573666,1753360259310,-460.0,0.00020273,2]
[374573667,1753360259320,-594.88699619,0.00020273,2]
[374573668,1753360259331,-475.5972754,0.00020273,2]
[374573669,1753360259340,-460.0,0.00020273,2]
[374573670,1753360259349,-460.0,0.00020273,2]
[374573671,1753360259359,-460.0,0.00020273,2]
[374573672,1753360259369,-460.0,0.00020273,2]
[374573673,1753360259379,-460.0,0.00020273,2]
[374573674,1753360259389,-460.0,0.00020273,2]
[374573675,1753360259400,-460.0,0.00020273,2]
[374573676,1753360259410,-519.46638476,0.00020273,2]
[374573677,1753360259419,-460.0,0.00020273,2]
[374573678,1753360259429,-472.692786,0.00020273,2]
[374573679,1753360259439,-460.0,0.00020273,2]
[374573680,1753360259450,-358.71358579,0.00020273,2]
[374573681,1753360259460,-460.0,0.00020273,2]
[374573682,1753360259473,-460.0,0.00020273,2]
[374573683,1753360259483,-470.07287424,0.00020273,2]
[374573684,1753360259493,-460.0,0.00020273,2]
[374573685,1753360259503,-460.0,0.00020273,2]
[374573686,1753360259512,-460.0,0.00020273,2]
[374573687,1753360259522,-460.0,0.00020273,2]
[374573688,1753360259531,-509.69,0.00020273,2]
[374573689,1753360259541,-460.0,0.00020273,2]
[374573690,1753360259550,-460.0,0.00020273,2]
[374573691,1753360259560,-460.0,0.00020273,2]
[374573692,1753360259570,-460.0,0.00020273,2]
[374573693,1753360259579,-460.0,0.00020273,2]
[374573694,1753360259589,-460.0,0.00020273,2]
[374573695,1753360259600,-460.0,0.00020273,2]
[374573696,1753360259610,-460.0,0.00020273,2]
[374573697,1753360259621,-460.0,0.00020273,2]
[374573698,1753360259632,-460.0,0.00020273,2]
[374573699,1753360259642,-468.15342368,0.00020273,2]
[374573700,1753360259653,-460.0,0.00020273,2]
[374573701,1753360259663,-460.0,0.00020273,2]
[374573702,1753360259673,-460.0,0.00020273,2]
[374573703,1753360259683,-460.0,0.00020273,2]
[374573704,1753360259693,-192.40003544,0.00020273,2]
[374573705,1753360259704,-460.0,0.00020273,2]
[374573706,1753360259715,-625.4,0.00020273,2]
[374573707,1753360259726,-460.0,0.00020273,2]
[374573708,1753360259736,-460.0,0.00020273,2]
[374573709,1753360259746,-460.0,0.00020273,2]
[374573710,1753360259757,-460.0,0.00020273,2]
[374573711,1753360259766,-460.0,0.00020273,2]
[374573712,1753360259776,-502.72756774,0.00020273,2]
[374573713,1753360259786,-460.0,0.00020273,2]
[374573714,1753360259796,-460.0,0.00020273,2]
[374573715,1753360259806,-460.0,0.00020273,2]
[374573716,1753360259815,-460.0,0.00020273,2]
[374573717,1753360259826,-461.86,0.00020273,2]
[374573718,1753360259836,-460.0,0.00020273,2]
[374573719,1753360259846,-460.0,0.00020273,2]
[374573720,1753360259856,-468.27109333,0.00020273,2]
[374573721,1753360259866,-460.0,0.00020273,2]
[374573722,1753360259876,-460.0,0.00020273,2]
[374573723,1753360259886,-460.0,0.00020273,2]
[374573724,1753360259895,-460.0,0.00020273,2]
[374573725,1753360259907,-460.0,0.00020273,2]
[374573726,1753360259918,-460.0,0.00020273,2]
[374573727,1753360259928,-460.0,0.00020273,2]
[374573728,1753360259939,-460.0,0.00020273,2]
[374573729,1753360259949,-460.0,0.00020273,2]
[374573730,1753360259959,-617.93,0.00020273,2]
[374573731,1753360259969,-460.0,0.00020273,2]
[374573732,1753360259979,-460.0,0.00020273,2]
[374573733,1753360259989,-460.0,0.00020273,2]
[374573734,1753360259999,-497.53,0.00020273,2]
[374573735,1753360260010,-460.0,0.00020273,2]
[374573736,1753360260020,-460.0,0.00020273,2]
[374573737,1753360260030,-568.79664235,0.00020273,2]
[374573738,1753360260041,-498.33,0.00020273,2]
[374573739,1753360260052,-460.0,0.00020273,2]
[374573740,1753360260201,-460.0,0.00020273,2]
[374573741,1753360260213,-460.0,0.00020273,2]
[374573742,1753360260225,-467.28698505,0.00020273,2]
[374573743,1753360260235,-460.0,0.00020273,2]
[374573744,1753360260246,-1176.12,0.00020273,2]
[374573745,1753360260256,-460.0,0.00020273,2]
[374573746,1753360260267,-468.66,0.00020273,2]
[374573747,1753360260277,-460.0,0.00020273,2]
[374573748,1753360260287,-484.22923534,0.00020273,2]
[374573749,1753360260297,-460.0,0.00020273,2]
[374573750,1753360260307,-460.0,0.00020273,2]
[374573751,1753360260318,-460.0,0.00020273,2]
[374573752,1753360260329,-460.0,0.00020273,2]
[374573753,1753360260350,-460.0,0.00020273,2]
[374573754,1753360260361,-158.40065603,0.00020273,2]
[374573755,1753360260373,-460.0,0.00020273,2]
[374573756,1753360260385,-460.0,0.00020273,2]
[374573757,1753360260395,-460.0,0.00020273,2]
[374573758,1753360260415,-460.0,0.00020273,2]
[374573759,1753360260426,-474.92865728,0.00020273,2]
[374573760,1753360260436,-485.69,0.00020273,2]
[374573761,1753360260447,-460.0,0.00020273,2]
[374573762,1753360260458,-460.0,0.00020273,2]
[374573763,1753360260469,-460.0,0.00020273,2]
[374573764,1753360260480,-460.0,0.00020273,2]
[374573765,1753360260490,-460.0,0.00020273,2]
[374573766,1753360260500,-460.0,0.00020273,2]
[374573767,1753360260511,-460.0,0.00020273,2]
[374573768,1753360260521,-460.0,0.00020273,2]
[374573769,1753360260531,-460.0,0.00020273,2]
[374573770,1753360260542,-460.0,0.00020273,2]
[374573771,1753360260552,-460.0,0.00020273,2]
[374573772,1753360260562,-460.0,0.00020273,2]
[374573773,1753360260572,-460.0,0.00020273,2]
[374573774,1753360260582,-460.0,0.00020273,2]
[374573775,1753360260592,-460.0,0.00020273,2]
[374573776,1753360260603,-460.0,0.00020273,2]
[374573777,1753360260614,-460.0,0.00020273,2]
[374573778,1753360260624,-460.0,0.00020273,2]
[374573779,1753360260634,-460.0,0.00020273,2]
[374573780,1753360260645,-460.0,0.00020273,2]
[374573781,1753360260660,-656.04,0.00020273,2]
[374573782,1753360260671,-787.46,0.00020273,2]
[374573783,1753360260682,-151.0,0.00020273,2]
[374573784,1753360260693,-422.72900678,0.00020273,2]
[374573785,1753360260703,-460.0,0.00020273,2]
[374573786,1753360260713,-460.0,0.00020273,2]
[374573787,1753360260723,-460.0,0.00020273,2]
[374573788,1753360260734,-460.0,0.00020273,2]
[374573789,1753360260744,-4145.47,0.00020273,2]
[374573790,1753360260755,-460.0,0.00020273,2]
[374573791,1753360260766,-460.0,0.00020273,2]
[374573792,1753360260776,-151.0,0.00020273,2]
[374573793,1753360260785,-151.0,0.00020273,2]
[374573794,1753360260795,-460.0,0.00020273,2]
[374573795,1753360260805,-460.0,0.00020273,2]
[374573796,1753360260815,-460.0,0.00020273,2]
[374573797,1753360260829,-3246.15,0.00020273,2]
[374573798,1753360260839,-291.15966776,0.00020273,2]
[374573799,1753360260855,-460.0,0.00020273,2]
[374573800,1753360260865,-460.0,0.00020273,2]
[374573801,1753360260875,-1199.81,0.00020273,2]
[374573802,1753360260885,-983.86,0.00020273,2]
[374573803,1753360260895,-587.06147431,0.00020273,2]
[374573804,1753360260909,-460.0,0.00020273,2]
[374573805,1753360260919,-460.0,0.00020273,2]
[374573806,1753360260929,-1418.88,0.00020273,2]
[374573807,1753360260939,-460.0,0.00020273,2]
[374573808,1753360260949,-460.0,0.00020273,2]
[374573809,1753360260959,-460.0,0.00020273,2]
[374573810,1753360260968,-460.0,0.00020273,2]
[374573811,1753360260978,-460.0,0.00020273,2]
[374573812,1753360260988,-460.0,0.00020273,2]
[374573813,1753360260997,-460.0,0.00020273,2]
[374573814,1753360261007,-460.0,0.00020273,2]
[374573815,1753360261017,-849.03,0.00020273,2]
[374573816,1753360261026,-460.0,0.00020273,2]
[374573817,1753360261035,-460.0,0.00020273,2]
[374573818,1753360261045,-569.28,0.00020273,2]
[374573819,1753360261054,-460.0,0.00020273,2]
[374573820,1753360261064,-613.55,0.00020273,2]
[374573821,1753360261074,-1824.94,0.00020273,2]
[374573822,1753360261084,-460.0,0.00020273,2]
[374573823,1753360261094,-460.0,0.00020273,2]
[374573824,1753360261103,-627.83,0.00020273,2]
[374573825,1753360261113,-460.0,0.00020273,2]
[374573826,1753360261123,-460.0,0.00020273,2]
[374573827,1753360261135,-460.0,0.00020273,2]
[374573828,1753360261145,-324.26568357,0.00020273,2]
[374573829,1753360261158,-460.0,0.00020273,2]
[374573830,1753360261169,-460.0,0.00020273,2]
[374573831,1753360261180,-460.0,0.00020273,2]
[374573832,1753360261191,-2461.45,0.00020273,2]
[374573833,1753360261201,-460.0,0.00020273,2]
[374573834,1753360261213,-460.0,0.00020273,2]
[374573835,1753360261223,-460.0,0.00020273,2]
[374573836,1753360261233,-460.0,0.00020273,2]
[374573837,1753360261243,-460.0,0.00020273,2]
[374573838,1753360261252,-464.16385009,0.00020273,2]
[374573839,1753360261263,-460.0,0.00020273,2]
[374573840,1753360261273,-460.0,0.00020273,2]
[374573841,1753360261284,-460.0,0.00020273,2]
[374573842,1753360261294,-597.66,0.00020273,2]
[374573843,1753360261305,-460.0,0.00020273,2]
[374573844,1753360261315,-479.16,0.00020273,2]
[374573845,1753360261326,-460.0,0.00020273,2]
[374573846,1753360261336,-2629.06,0.00020273,2]
[374573847,1753360261346,-602.97,0.00020273,2]
[374573848,1753360261356,-460.0,0.00020273,2]
[374573849,1753360261367,-460.0,0.00020273,2]
[374573850,1753360261377,-1353.06,0.00020273,2]
[374573851,1753360261387,-604.51,0.00020273,2]
[374573852,1753360261399,-460.0,0.00020273,2]
[374573853,1753360261412,-460.0,0.00020273,2]
[374573854,1753360261422,-247.99936475,0.00020273,2]
[374573855,1753360261432,-460.0,0.00020273,2]
[374573856,1753360261442,-465.63410856,0.00020273,2]
[374573857,1753360261451,-460.0,0.00020273,2]
[374573858,1753360261461,-555.83,0.00020273,2]
[374573859,1753360261475,-460.0,0.00020273,2]
[374573860,1753360261486,-460.0,0.00020273,2]
[374573861,1753360261497,-460.0,0.00020273,2]
[374573862,1753360261508,-2933.32,0.00020273,2]
[374573863,1753360261518,-460.0,0.00020273,2]
[374573864,1753360261528,-616.01,0.00020273,2]
[374573865,1753360261538,-460.0,0.00020273,2]
[374573866,1753360261548,-609.01,0.00020273,2]
[374573867,1753360261558,-460.0,0.00020273,2]
[374573868,1753360261568,-460.21,0.00020273,2]
[374573869,1753360261578,-460.0,0.00020273,2]
[374573870,1753360261588,-460.0,0.00020273,2]
[374573871,1753360261598,-460.0,0.00020273,2]
[374573872,1753360261608,-1496.43,0.00020273,2]
[374573873,1753360261618,-1261.1,0.00020273,2]
[374573874,1753360261629,-596.9,0.00020273,2]
[374573875,1753360261639,-460.0,0.00020273,2]
[374573876,1753360261652,-670.55,0.00020273,2]
[374573877,1753360261663,-653.26,0.00020273,2]
[374573878,1753360261673,-151.0,0.00020273,2]
[374573879,1753360261683,-460.0,0.00020273,2]
[374573880,1753360261693,-5786.17,0.00020273,2]
[374573881,1753360261703,-151.0,0.00020273,2]